[Event "17th Spilimbergo Open 2019"]
[Site "Spilimbergo"]
[Date "2019.08.14"]
[Round "8.10"]
[White "Admiraal, Miguoel"]
[Black "Skembris, Spyridon"]
[Result "1-0"]
[WhiteElo "2513"]
[BlackElo "2413"]
[PlyCount "59"]
[EventDate "2019.08.09"]
[EventType "swiss"]
[EventCountry "ITA"]
[TimeControl "5400+30"]
[BlackClock "0:14:36"]

1. e4 {[%emt 0:07:30]} e6 {[%emt 0:04:30]} 2. d4 {[%emt 0:00:00]} d5 {[%emt 0:00:00]} 3. Bd3 {[%emt 0:01:00]} dxe4 {[%emt 0:00:00]} 4. Bxe4 {[%emt 0:00:30]} Nf6 {[%emt 0:00:30]} 5. Bf3 {[%emt 0:00:00]} c5 {[%emt 0:01:30]} 6. Ne2 {[%emt 0:00:00]} Nc6 {[%emt 0:01:30]} 7. Be3 {[%emt 0:00:30]} cxd4 {[%emt 0:12:30]} 8. Nxd4 {[%emt 0:00:30]} Ne5 {[%emt 0:00:30]} 9. Be2 {[%emt 0:15:30]} Nd5 {[%emt 0:03:30]} 10. Bc1 {[%emt 0:00:30]} Bc5 {[%emt 0:07:30]} 11. O-O {[%emt 0:15:30]} O-O {[%emt 0:02:30]} 12. Nb3 {[%emt 0:10:30]} Bb6 {[%emt 0:00:30]} 13. c4 {[%emt 0:03:30]} Nb4 {[%emt 0:02:30]} 14. c5 {[%emt 0:01:30]} Bc7 {[%emt 0:00:30]} 15. Nc3 {[%emt 0:01:30]} Nbd3 {[%emt 0:12:30]} 16. Nb5 {[%emt 0:07:30]} Nxc1 {[%emt 0:01:30]} 17. Qxc1 {[%emt 0:03:30]} Bb8 {[%emt 0:00:30]} 18. Rd1 {[%emt 0:05:30]} Qe7 {[%emt 0:02:30]} 19. Nd6 {[%emt 0:00:30]} Rd8 {[%emt 0:06:30]} 20. Qe3 {[%emt 0:01:30]} Nc6 {[%emt 0:00:00]} 21. Nf5 {[%emt 0:11:24]} Qc7 {[%emt 0:06:00]} 22. Rxd8+ {[%emt 0:00:06]} Nxd8 {[%emt 0:00:30]} 23. g3 {[%emt 0:00:06]} Kf8 {[%emt 0:02:30]} 24. Nd6 {[%emt 0:03:17]} Bd7 {[%emt 0:00:30]} 25. Rd1 {[%emt 0:00:19]} Ba4 {[%emt 0:08:30]} 26. Qd3 {[%emt 0:05:19]} Ke7 {[%emt 0:05:19]} 27. Qxh7 {[%emt 0:01:28]} Bxb3 {[%emt 0:00:18]} 28. Qh4+ {[%emt 0:00:25]} Kf8 {[%emt 0:03:53]} 29. Nf5 {[%emt 0:00:14]} Bxd1 {[%emt 0:00:54]} 30. Qh8# {[%emt 0:05:22]} 1-0

[Event "17th Spilimbergo Open 2019"]
[Site "Spilimbergo"]
[Date "2019.08.14"]
[Round "8.11"]
[White "Nikolovski, Nikola"]
[Black "Keymer, Vincent"]
[Result "1-0"]
[WhiteElo "2409"]
[BlackElo "2513"]
[PlyCount "91"]
[EventDate "2019.08.09"]
[EventType "swiss"]
[EventCountry "ITA"]
[TimeControl "5400+30"]
[WhiteClock "0:01:29"]
[BlackClock "0:01:52"]

1. e4 {[%emt 0:00:30]} c5 {[%emt 0:00:30]} 2. Be2 {[%emt 0:00:00]} e6 {[%emt 0:04:30]} 3. f4 {[%emt 0:00:00]} d5 {[%emt 0:05:30]} 4. d3 {[%emt 0:00:30]} Nc6 {[%emt 0:03:30]} 5. Nf3 {[%emt 0:00:30]} g6 {[%emt 0:03:30]} 6. O-O {[%emt 0:00:30]} Bg7 {[%emt 0:00:30]} 7. c3 {[%emt 0:00:30]} Nge7 {[%emt 0:00:30]} 8. Na3 {[%emt 0:00:30]} O-O {[%emt 0:04:30]} 9. Nc2 {[%emt 0:00:30]} b6 {[%emt 0:01:30]} 10. Be3 {[%emt 0:04:30]} e5 {[%emt 0:10:30]} 11. Qe1 {[%emt 0:14:30]} d4 {[%emt 0:10:30]} 12. cxd4 {[%emt 0:11:30]} exd4 {[%emt 0:00:30]} 13. Bd2 {[%emt 0:02:30]} f5 {[%emt 0:01:30]} 14. e5 {[%emt 0:01:30]} a5 {[%emt 0:05:30]} 15. h4 {[%emt 0:04:30]} Ba6 {[%emt 0:05:30]} 16. b3 {[%emt 0:02:30]} Qe8 {[%emt 0:04:30]} 17. h5 {[%emt 0:04:30]} gxh5 {[%emt 0:03:30]} 18. Qh4 {[%emt 0:03:30]} Nd5 {[%emt 0:02:30]} 19. Ng5 {[%emt 0:11:30]} h6 {[%emt 0:03:30]} 20. Nh3 {[%emt 0:00:30]} Ncb4 {[%emt 0:03:30]} 21. Nxb4 {[%emt 0:07:30]} axb4 {[%emt 0:00:30]} 22. Bxh5 {[%emt 0:00:30]} Qe7 {[%emt 0:01:30]} 23. Qg3 {[%emt 0:00:30]} Bc8 {[%emt 0:03:30]} 24. Bg6 {[%emt 0:03:30]} Qe6 {[%emt 0:00:32]} 25. Nf2 {[%emt 0:02:30]} Bd7 {[%emt 0:02:39]} 26. Bh5 {[%emt 0:00:30]} Ra7 {[%emt 0:01:46]} 27. Qf3 {[%emt 0:03:39]} Bc6 {[%emt 0:03:49]} 28. Qh3 {[%emt 0:00:32]} Be8 {[%emt 0:03:01]} 29. Bf3 {[%emt 0:05:28]} Bd7 {[%emt 0:01:13]} 30. Kh1 {[%emt 0:00:47]} Ne7 {[%emt 0:02:01]} 31. Rg1 {[%emt 0:01:08]} Bc6 {[%emt 0:01:30]} 32. Ne4 {[%emt 0:00:51]} Nc8 {[%emt 0:00:43]} 33. Ng3 {[%emt 0:07:01]} Ne7 {[%emt 0:00:10]} 34. Nh5 {[%emt 0:00:12]} Kh7 {[%emt 0:01:30]} 35. Be1 {[%emt 0:01:45]} Bh8 {[%emt 0:01:08]} 36. Bh4 {[%emt 0:00:30]} Bxf3 {[%emt 0:01:06]} 37. gxf3 {[%emt 0:01:25]} Nd5 {[%emt 0:01:04]} 38. Bg5 {[%emt 0:00:16]} Bg7 {[%emt 0:02:05]} 39. Rg2 {[%emt 0:01:47]} Rg8 {[%emt 0:02:10]} 40. Rh2 {[%emt 0:03:08]} Qg6 {[%emt 0:01:24]} 41. Rg1 {[%emt 0:00:53]} Bf8 {[%emt 0:00:12]} 42. Rgg2 {[%emt 0:00:46]} Ne3 {[%emt 0:00:55]} 43. Nf6+ {[%emt 0:00:12]} Kg7 {[%emt 0:00:29]} 44. Bxh6+ {[%emt 0:00:11]} Kf7 {[%emt 0:00:02]} 45. Rxg6 {[%emt 0:00:07]} Rxg6 {[%emt 0:00:02]} 46. Bxf8 1-0

[Event "17th Spilimbergo Open 2019"]
[Site "Spilimbergo"]
[Date "2019.08.14"]
[Round "8.12"]
[White "Yankelevich, Lev"]
[Black "Di Benedetto, Edoardo"]
[Result "1/2-1/2"]
[WhiteElo "2480"]
[BlackElo "2399"]
[PlyCount "79"]
[EventDate "2019.08.09"]
[EventType "swiss"]
[EventCountry "ITA"]
[TimeControl "5400+30"]
[WhiteClock "0:20:00"]
[BlackClock "1:00:00"]

1. d4 {[%emt 0:00:30]} d5 {[%emt 0:03:30]} 2. c4 {[%emt 0:00:00]} e6 {[%emt 0:00:30]} 3. Nc3 {[%emt 0:00:00]} Be7 {[%emt 0:00:00]} 4. Nf3 {[%emt 0:00:00]} Nf6 {[%emt 0:00:00]} 5. Bf4 {[%emt 0:00:00]} O-O {[%emt 0:00:00]} 6. e3 {[%emt 0:00:00]} b6 {[%emt 0:00:00]} 7. Bd3 {[%emt 0:00:00]} dxc4 {[%emt 0:00:30]} 8. Bxc4 {[%emt 0:00:00]} Ba6 {[%emt 0:00:30]} 9. Qe2 {[%emt 0:00:00]} Qc8 {[%emt 0:00:30]} 10. O-O {[%emt 0:00:00]} Bxc4 {[%emt 0:04:30]} 11. Qxc4 {[%emt 0:00:00]} c5 {[%emt 0:00:30]} 12. Nb5 {[%emt 0:02:30]} Nd5 {[%emt 0:04:30]} 13. dxc5 {[%emt 0:10:30]} Qxc5 {[%emt 0:05:30]} 14. Rac1 {[%emt 0:04:30]} Nxf4 {[%emt 0:24:30]} 15. exf4 {[%emt 0:00:30]} Qxc4 {[%emt 0:01:30]} 16. Rxc4 {[%emt 0:00:00]} a6 {[%emt 0:00:00]} 17. Nbd4 {[%emt 0:01:00]} b5 {[%emt 0:01:00]} 18. Rc2 {[%emt 0:00:30]} Ra7 {[%emt 0:05:30]} 19. Ne5 {[%emt 0:00:30]} Bf6 {[%emt 0:02:30]} 20. Ndf3 {[%emt 0:00:30]} Bxe5 {[%emt 0:07:30]} 21. Nxe5 {[%emt 0:00:30]} f6 {[%emt 0:00:30]} 22. Nf3 {[%emt 0:05:30]} Rd7 {[%emt 0:02:30]} 23. Rfc1 {[%emt 0:00:30]} Rfd8 {[%emt 0:02:30]} 24. Kf1 {[%emt 0:00:00]} Kf7 {[%emt 0:01:30]} 25. Ke2 {[%emt 0:00:00]} Ke7 {[%emt 0:01:30]} 26. Rc8 {[%emt 0:00:30]} Rxc8 {[%emt 0:01:30]} 27. Rxc8 {[%emt 0:00:00]} Rd8 {[%emt 0:00:00]} 28. Rc7+ {[%emt 0:01:00]} Rd7 {[%emt 0:00:00]} 29. Rc3 {[%emt 0:01:30]} Rd6 {[%emt 0:06:30]} 30. Nd2 {[%emt 0:01:30]} Rc6 {[%emt 0:00:30]} 31. Kd3 {[%emt 0:02:30]} Rxc3+ {[%emt 0:01:30]} 32. Kxc3 {[%emt 0:00:30]} Kd6 {[%emt 0:00:30]} 33. b4 {[%emt 0:00:30]} Kd5 {[%emt 0:01:30]} 34. f3 {[%emt 0:01:30]} Nc6 {[%emt 0:00:30]} 35. Nf1 {[%emt 0:03:30]} Kd6 {[%emt 0:01:30]} 36. a3 {[%emt 0:03:30]} f5 {[%emt 0:02:30]} 37. Ne3 {[%emt 0:01:30]} Ne7 {[%emt 0:01:08]} 38. Kd4 {[%emt 0:00:00]} Nc6+ {[%emt 0:00:12]} 39. Kd3 {[%emt 0:04:00]} g6 {[%emt 0:00:10]} 40. Nc2 1/2-1/2

[Event "17th Spilimbergo Open 2019"]
[Site "Spilimbergo"]
[Date "2019.08.15"]
[Round "9.1"]
[White "Vetoshko, Volodymyr"]
[Black "Saric, Ivan"]
[Result "1/2-1/2"]
[WhiteElo "2495"]
[BlackElo "2660"]
[PlyCount "59"]
[EventDate "2019.08.09"]
[EventType "swiss"]
[EventCountry "ITA"]
[TimeControl "5400+30"]
[WhiteClock "0:34:00"]
[BlackClock "0:16:49"]

1. d4 {[%emt 0:04:30]} Nf6 {[%emt 0:00:30]} 2. c4 {[%emt 0:00:30]} e6 {[%emt 0:00:30]} 3. g3 {[%emt 0:00:00]} Bb4+ {[%emt 0:01:30]} 4. Bd2 {[%emt 0:00:00]} Be7 {[%emt 0:00:00]} 5. Bg2 {[%emt 0:00:30]} d5 {[%emt 0:00:00]} 6. Nf3 {[%emt 0:00:30]} O-O {[%emt 0:00:30]} 7. O-O {[%emt 0:00:30]} c6 {[%emt 0:00:00]} 8. Qc2 {[%emt 0:00:00]} Nbd7 {[%emt 0:04:00]} 9. Rd1 {[%emt 0:03:00]} Ne4 {[%emt 0:02:30]} 10. Bc1 {[%emt 0:02:30]} a5 {[%emt 0:03:30]} 11. Nbd2 {[%emt 0:05:30]} f5 {[%emt 0:00:30]} 12. Ne1 {[%emt 0:07:30]} Nb6 {[%emt 0:22:30]} 13. Nxe4 {[%emt 0:07:30]} fxe4 {[%emt 0:00:30]} 14. b3 {[%emt 0:00:30]} Bd7 {[%emt 0:08:30]} 15. c5 {[%emt 0:04:30]} Nc8 {[%emt 0:00:30]} 16. f3 {[%emt 0:00:30]} exf3 {[%emt 0:03:30]} 17. Nxf3 {[%emt 0:00:30]} Bf6 {[%emt 0:00:30]} 18. Bf4 {[%emt 0:08:30]} Ne7 {[%emt 0:00:30]} 19. Bd6 {[%emt 0:07:30]} Rf7 {[%emt 0:00:00]} 20. e4 {[%emt 0:03:30]} dxe4 {[%emt 0:08:00]} 21. Qxe4 {[%emt 0:02:30]} b6 {[%emt 0:01:30]} 22. Ne5 {[%emt 0:10:30]} Bxe5 {[%emt 0:00:30]} 23. Qxe5 {[%emt 0:00:00]} bxc5 {[%emt 0:00:30]} 24. dxc5 {[%emt 0:01:00]} Nd5 {[%emt 0:01:30]} 25. Rf1 {[%emt 0:02:30]} Rf6 {[%emt 0:02:30]} 26. Bh3 {[%emt 0:02:30]} Qe8 {[%emt 0:01:30]} 27. Rae1 {[%emt 0:02:30]} Qf7 {[%emt 0:00:30]} 28. Bg4 {[%emt 0:03:30]} a4 {[%emt 0:03:30]} 29. Bh5 {[%emt 0:04:41]} g6 {[%emt 0:00:30]} 30. Bg4 1/2-1/2

[Event "17th Spilimbergo Open 2019"]
[Site "Spilimbergo"]
[Date "2019.08.15"]
[Round "9.2"]
[White "Kovalev, Vladislav"]
[Black "Nagy, Gabor"]
[Result "1/2-1/2"]
[WhiteElo "2651"]
[BlackElo "2473"]
[PlyCount "72"]
[EventDate "2019.08.09"]
[EventType "swiss"]
[EventCountry "ITA"]
[TimeControl "5400+30"]
[WhiteClock "0:48:00"]
[BlackClock "0:12:22"]

1. e4 {[%emt 0:00:30]} c5 {[%emt 0:03:30]} 2. Nf3 {[%emt 0:00:00]} e6 {[%emt 0:00:30]} 3. Nc3 {[%emt 0:01:00]} Nc6 {[%emt 0:00:30]} 4. d4 {[%emt 0:00:00]} cxd4 {[%emt 0:00:30]} 5. Nxd4 {[%emt 0:00:00]} Qc7 {[%emt 0:00:30]} 6. g3 {[%emt 0:00:30]} a6 {[%emt 0:02:30]} 7. Bg2 {[%emt 0:01:30]} d6 {[%emt 0:01:30]} 8. O-O {[%emt 0:04:30]} Bd7 {[%emt 0:01:30]} 9. Re1 {[%emt 0:21:30]} Be7 {[%emt 0:01:30]} 10. Nxc6 {[%emt 0:00:30]} Bxc6 {[%emt 0:00:30]} 11. Qg4 {[%emt 0:00:30]} h5 {[%emt 0:00:00]} 12. Qe2 {[%emt 0:03:30]} h4 {[%emt 0:04:00]} 13. a4 {[%emt 0:04:30]} hxg3 {[%emt 0:04:30]} 14. hxg3 {[%emt 0:00:30]} Nf6 {[%emt 0:01:30]} 15. Bf4 {[%emt 0:00:30]} e5 {[%emt 0:03:30]} 16. Be3 {[%emt 0:06:30]} Rc8 {[%emt 0:02:30]} 17. Rad1 {[%emt 0:02:30]} g6 {[%emt 0:03:30]} 18. Bg5 {[%emt 0:00:30]} Kf8 {[%emt 0:02:30]} 19. Bf3 {[%emt 0:11:30]} Kg7 {[%emt 0:04:30]} 20. Bxf6+ {[%emt 0:01:30]} Bxf6 {[%emt 0:00:00]} 21. Bg4 {[%emt 0:00:30]} Rcd8 {[%emt 0:00:00]} 22. Nd5 {[%emt 0:00:30]} Bxd5 {[%emt 0:00:30]} 23. Rxd5 {[%emt 0:00:00]} Rh6 {[%emt 0:01:30]} 24. a5 {[%emt 0:02:00]} Rdh8 {[%emt 0:05:30]} 25. Bf3 {[%emt 0:02:30]} Be7 {[%emt 0:00:30]} 26. Qd3 {[%emt 0:04:30]} b5 {[%emt 0:03:30]} 27. axb6 {[%emt 0:02:30]} Qxb6 {[%emt 0:00:30]} 28. Qb3 {[%emt 0:02:30]} Qxb3 {[%emt 0:03:30]} 29. cxb3 {[%emt 0:00:30]} Rc8 {[%emt 0:00:30]} 30. Be2 {[%emt 0:04:30]} Rc2 {[%emt 0:01:30]} 31. Bxa6 {[%emt 0:01:30]} Rxb2 {[%emt 0:00:30]} 32. Bc4 {[%emt 0:00:30]} f5 {[%emt 0:00:30]} 33. Rdd1 {[%emt 0:01:30]} Rh8 {[%emt 0:00:30]} 34. Rb1 {[%emt 0:07:51]} Rxb1 {[%emt 0:01:30]} 35. Rxb1 {[%emt 0:00:02]} Rb8 {[%emt 0:00:00]} 36. Bd5 {[%emt 0:02:15]} Rb4 1/2-1/2

[Event "17th Spilimbergo Open 2019"]
[Site "Spilimbergo"]
[Date "2019.08.15"]
[Round "9.3"]
[White "Dragnev, Valentin"]
[Black "Henderson de La Fuente, Lance"]
[Result "1-0"]
[WhiteElo "2535"]
[BlackElo "2487"]
[PlyCount "127"]
[EventDate "2019.08.09"]
[EventType "swiss"]
[EventCountry "ITA"]
[TimeControl "5400+30"]
[BlackClock "0:03:49"]

1. d4 {[%emt 0:03:30]} Nf6 {[%emt 0:00:30]} 2. c4 {[%emt 0:00:00]} e6 {[%emt 0:00:00]} 3. Nf3 {[%emt 0:00:00]} b6 {[%emt 0:00:00]} 4. g3 {[%emt 0:00:30]} Bb7 {[%emt 0:00:30]} 5. Bg2 {[%emt 0:00:30]} Be7 {[%emt 0:00:00]} 6. O-O {[%emt 0:00:00]} O-O {[%emt 0:00:00]} 7. Nc3 {[%emt 0:00:00]} Ne4 {[%emt 0:00:30]} 8. Bd2 {[%emt 0:00:30]} Bf6 {[%emt 0:00:30]} 9. Rc1 {[%emt 0:03:30]} c5 {[%emt 0:05:30]} 10. d5 {[%emt 0:01:30]} exd5 {[%emt 0:00:30]} 11. cxd5 {[%emt 0:00:30]} Nxd2 {[%emt 0:00:30]} 12. Nxd2 {[%emt 0:00:30]} d6 {[%emt 0:00:30]} 13. Nde4 {[%emt 0:02:30]} Be7 {[%emt 0:00:30]} 14. f4 {[%emt 0:02:30]} a6 {[%emt 0:02:30]} 15. a4 {[%emt 0:07:30]} Nd7 {[%emt 0:01:30]} 16. g4 {[%emt 0:02:30]} Rb8 {[%emt 0:14:30]} 17. g5 {[%emt 0:10:30]} Bc8 {[%emt 0:01:30]} 18. Kh1 {[%emt 0:06:30]} b5 {[%emt 0:09:30]} 19. axb5 {[%emt 0:07:30]} axb5 {[%emt 0:00:00]} 20. h4 {[%emt 0:11:30]} b4 {[%emt 0:02:00]} 21. Nb1 {[%emt 0:00:30]} Re8 {[%emt 0:11:30]} 22. Nbd2 {[%emt 0:01:30]} Nb6 {[%emt 0:09:30]} 23. Ng3 {[%emt 0:00:30]} f6 {[%emt 0:01:30]} 24. Nf3 {[%emt 0:03:30]} Bf8 {[%emt 0:03:30]} 25. Qd2 {[%emt 0:01:30]} Rb7 {[%emt 0:03:30]} 26. e4 {[%emt 0:02:30]} Rf7 {[%emt 0:04:30]} 27. Rg1 {[%emt 0:02:30]} g6 {[%emt 0:01:30]} 28. f5 {[%emt 0:05:30]} Bg7 {[%emt 0:02:30]} 29. Bh3 {[%emt 0:04:30]} Rff8 {[%emt 0:00:30]} 30. Qh2 {[%emt 0:00:41]} fxg5 {[%emt 0:05:30]} 31. hxg5 {[%emt 0:02:34]} Be5 {[%emt 0:00:30]} 32. Nxe5 {[%emt 0:03:55]} Rxe5 {[%emt 0:00:00]} 33. Rcf1 {[%emt 0:00:21]} Qe8 {[%emt 0:07:50]} 34. fxg6 {[%emt 0:01:19]} hxg6 {[%emt 0:00:19]} 35. Bxc8 {[%emt 0:01:15]} Nxc8 {[%emt 0:01:58]} 36. Qh4 {[%emt 0:04:22]} Re7 {[%emt 0:05:17]} 37. Kg2 {[%emt 0:01:08]} Rh7 {[%emt 0:00:11]} 38. Rxf8+ {[%emt 0:01:08]} Qxf8 {[%emt 0:00:02]} 39. Qg4 {[%emt 0:00:04]} Rf7 {[%emt 0:01:16]} 40. Qe6 {[%emt 0:01:29]} Kg7 {[%emt 0:04:56]} 41. Nf5+ {[%emt 0:01:17]} Rxf5 {[%emt 0:01:04]} 42. exf5 {[%emt 0:00:04]} Qxf5 {[%emt 0:00:08]} 43. Qxf5 {[%emt 0:01:02]} gxf5 {[%emt 0:00:01]} 44. Re1 {[%emt 0:00:20]} Kg6 {[%emt 0:00:29]} 45. Re8 {[%emt 0:00:39]} Nb6 {[%emt 0:00:09]} 46. Re6+ {[%emt 0:00:27]} Kxg5 {[%emt 0:00:01]} 47. Rxd6 {[%emt 0:00:08]} Nc4 {[%emt 0:00:05]} 48. Re6 {[%emt 0:01:31]} f4 {[%emt 0:01:23]} 49. d6 {[%emt 0:00:59]} Nb6 {[%emt 0:00:06]} 50. Re5+ {[%emt 0:03:34]} Kf6 {[%emt 0:00:01]} 51. Rxc5 {[%emt 0:00:00]} Ke6 {[%emt 0:00:04]} 52. Rb5 {[%emt 0:00:28]} Nc4 {[%emt 0:00:52]} 53. Rxb4 {[%emt 0:00:14]} Nxd6 {[%emt 0:01:40]} 54. Kf3 {[%emt 0:00:46]} Kd5 {[%emt 0:00:01]} 55. Rxf4 {[%emt 0:00:48]} Nc4 {[%emt 0:00:09]} 56. b4 {[%emt 0:00:16]} Nb6 {[%emt 0:00:39]} 57. Ke3 {[%emt 0:01:55]} Kc6 {[%emt 0:00:01]} 58. Kd3 {[%emt 0:00:00]} Kb5 {[%emt 0:00:08]} 59. Rd4 {[%emt 0:00:14]} Ka4 {[%emt 0:01:04]} 60. Kc3 {[%emt 0:00:19]} Kb5 {[%emt 0:00:14]} 61. Kb3 {[%emt 0:00:12]} Kc6 {[%emt 0:01:33]} 62. Rh4 {[%emt 0:00:08]} Kb5 {[%emt 0:00:19]} 63. Rh5+ {[%emt 0:00:04]} Ka6 {[%emt 0:00:04]} 64. Rg5 {[%emt 0:00:12]} 1-0

[Event "17th Spilimbergo Open 2019"]
[Site "Spilimbergo"]
[Date "2019.08.15"]
[Round "9.4"]
[White "Nisipeanu, Liviu-Dieter"]
[Black "Bosiocic, Marin"]
[Result "1/2-1/2"]
[WhiteElo "2666"]
[BlackElo "2611"]
[PlyCount "54"]
[EventDate "2019.08.09"]
[EventType "swiss"]
[EventCountry "ITA"]
[TimeControl "5400+30"]
[WhiteClock "0:24:00"]
[BlackClock "0:28:00"]

1. e4 {[%emt 0:00:30]} e5 {[%emt 0:00:30]} 2. Nf3 {[%emt 0:00:00]} Nc6 {[%emt 0:00:30]} 3. Bb5 {[%emt 0:00:00]} a6 {[%emt 0:00:30]} 4. Ba4 {[%emt 0:00:00]} Nf6 {[%emt 0:00:30]} 5. O-O {[%emt 0:00:00]} Be7 {[%emt 0:00:30]} 6. Re1 {[%emt 0:00:30]} b5 {[%emt 0:00:00]} 7. Bb3 {[%emt 0:00:00]} d6 {[%emt 0:00:00]} 8. c3 {[%emt 0:00:00]} O-O {[%emt 0:00:30]} 9. h3 {[%emt 0:00:00]} Bb7 {[%emt 0:00:00]} 10. d4 {[%emt 0:00:00]} Re8 {[%emt 0:00:00]} 11. Nbd2 {[%emt 0:00:30]} Bf8 {[%emt 0:00:30]} 12. d5 {[%emt 0:00:30]} Nb8 {[%emt 0:04:30]} 13. Nf1 {[%emt 0:00:30]} Nbd7 {[%emt 0:02:30]} 14. Bg5 {[%emt 0:00:00]} h6 {[%emt 0:01:30]} 15. Bh4 {[%emt 0:00:00]} Qb8 {[%emt 0:14:30]} 16. N3h2 {[%emt 0:10:30]} h5 {[%emt 0:16:30]} 17. g4 {[%emt 0:18:30]} hxg4 {[%emt 0:07:30]} 18. Nxg4 {[%emt 0:01:30]} Nxg4 {[%emt 0:02:30]} 19. Qxg4 {[%emt 0:00:30]} Be7 {[%emt 0:06:30]} 20. Bxe7 {[%emt 0:04:30]} Rxe7 {[%emt 0:00:30]} 21. Ne3 {[%emt 0:00:30]} Nf6 {[%emt 0:01:30]} 22. Qh4 {[%emt 0:00:30]} Re8 {[%emt 0:07:30]} 23. Kh2 {[%emt 0:04:30]} Qd8 {[%emt 0:01:30]} 24. Rg1 {[%emt 0:00:30]} Bc8 {[%emt 0:02:30]} 25. Bc2 {[%emt 0:24:30]} Kf8 {[%emt 0:03:30]} 26. Rg3 {[%emt 0:04:30]} Ke7 {[%emt 0:02:30]} 27. Qg5 {[%emt 0:02:30]} Rh8 1/2-1/2

[Event "17th Spilimbergo Open 2019"]
[Site "Spilimbergo"]
[Date "2019.08.15"]
[Round "9.5"]
[White "Barp, Alberto"]
[Black "Basso, Pier Luigi"]
[Result "0-1"]
[WhiteElo "2411"]
[BlackElo "2576"]
[PlyCount "56"]
[EventDate "2019.08.09"]
[EventType "swiss"]
[EventCountry "ITA"]
[TimeControl "5400+30"]
[WhiteClock "0:43:00"]
[BlackClock "0:15:14"]

1. d4 {[%emt 0:00:30]} Nf6 {[%emt 0:09:30]} 2. c4 {[%emt 0:00:00]} e6 {[%emt 0:00:00]} 3. Nf3 {[%emt 0:00:00]} c5 {[%emt 0:01:00]} 4. g3 {[%emt 0:09:30]} cxd4 {[%emt 0:00:00]} 5. Nxd4 {[%emt 0:00:30]} Qc7 {[%emt 0:04:00]} 6. Bg2 {[%emt 0:07:30]} Qxc4 {[%emt 0:04:30]} 7. Nc3 {[%emt 0:00:30]} a6 {[%emt 0:01:30]} 8. O-O {[%emt 0:01:30]} Nc6 {[%emt 0:00:00]} 9. Nb3 {[%emt 0:00:30]} Qg4 {[%emt 0:00:00]} 10. h3 {[%emt 0:07:30]} Qg6 {[%emt 0:00:30]} 11. Na4 {[%emt 0:04:30]} b5 {[%emt 0:04:30]} 12. Nb6 {[%emt 0:06:30]} Rb8 {[%emt 0:01:30]} 13. Nxc8 {[%emt 0:00:30]} Rxc8 {[%emt 0:00:30]} 14. Be3 {[%emt 0:03:30]} Be7 {[%emt 0:03:30]} 15. Nc5 {[%emt 0:07:30]} O-O {[%emt 0:04:30]} 16. Nxa6 {[%emt 0:07:30]} Na5 {[%emt 0:03:30]} 17. Bc5 {[%emt 0:04:30]} Rxc5 {[%emt 0:03:30]} 18. b4 {[%emt 0:03:30]} Rc6 {[%emt 0:00:30]} 19. Bxc6 {[%emt 0:00:00]} Nxc6 {[%emt 0:00:30]} 20. a4 {[%emt 0:00:00]} Qh5 {[%emt 0:01:30]} 21. Kg2 {[%emt 0:01:30]} bxa4 {[%emt 0:01:30]} 22. Qxa4 {[%emt 0:01:30]} Nd5 {[%emt 0:04:30]} 23. b5 {[%emt 0:08:30]} Nc3 {[%emt 0:04:30]} 24. Qc4 {[%emt 0:00:30]} Nxb5 {[%emt 0:00:30]} 25. Rad1 {[%emt 0:03:30]} Nd6 {[%emt 0:01:30]} 26. Qg4 {[%emt 0:03:50]} Qb5 {[%emt 0:01:30]} 27. Ra1 {[%emt 0:01:47]} Bf6 {[%emt 0:01:30]} 28. Ra2 {[%emt 0:01:39]} Qd5+ 0-1

[Event "17th Spilimbergo Open 2019"]
[Site "Spilimbergo"]
[Date "2019.08.15"]
[Round "9.6"]
[White "Palac, Mladen"]
[Black "Ravi, Teja S."]
[Result "0-1"]
[WhiteElo "2551"]
[BlackElo "2420"]
[PlyCount "128"]
[EventDate "2019.08.09"]
[EventType "swiss"]
[EventCountry "ITA"]
[TimeControl "5400+30"]
[WhiteClock "0:08:57"]
[BlackClock "0:04:27"]

1. e4 {[%emt 0:02:30]} c6 {[%emt 0:00:30]} 2. d4 {[%emt 0:00:00]} d5 {[%emt 0:00:00]} 3. e5 {[%emt 0:00:00]} Bf5 {[%emt 0:02:00]} 4. Nf3 {[%emt 0:00:30]} e6 {[%emt 0:00:00]} 5. c3 {[%emt 0:00:00]} Nd7 {[%emt 0:01:00]} 6. Be2 {[%emt 0:00:00]} h6 {[%emt 0:00:30]} 7. Nbd2 {[%emt 0:00:30]} Ne7 {[%emt 0:00:00]} 8. O-O {[%emt 0:00:00]} Qc7 {[%emt 0:00:00]} 9. Re1 {[%emt 0:01:00]} c5 {[%emt 0:10:30]} 10. dxc5 {[%emt 0:05:30]} Nxc5 {[%emt 0:04:30]} 11. Nd4 {[%emt 0:01:30]} a6 {[%emt 0:00:30]} 12. N2b3 {[%emt 0:02:30]} Nd7 {[%emt 0:08:30]} 13. Nxf5 {[%emt 0:14:30]} Nxf5 {[%emt 0:01:30]} 14. Bd3 {[%emt 0:00:00]} g6 {[%emt 0:01:30]} 15. Bxf5 {[%emt 0:11:00]} gxf5 {[%emt 0:00:30]} 16. Nd4 {[%emt 0:01:30]} Rg8 {[%emt 0:06:30]} 17. Bf4 {[%emt 0:06:30]} Nc5 {[%emt 0:08:30]} 18. b4 {[%emt 0:21:30]} Ne4 {[%emt 0:11:30]} 19. Qa4+ {[%emt 0:00:30]} Qd7 {[%emt 0:00:30]} 20. Qb3 {[%emt 0:00:00]} Rc8 {[%emt 0:00:30]} 21. Rac1 {[%emt 0:00:00]} Rc4 {[%emt 0:04:30]} 22. f3 {[%emt 0:01:30]} Ng5 {[%emt 0:00:30]} 23. Kh1 {[%emt 0:01:30]} Be7 {[%emt 0:00:30]} 24. Qd1 {[%emt 0:04:30]} h5 {[%emt 0:01:30]} 25. Qd2 {[%emt 0:01:30]} h4 {[%emt 0:00:30]} 26. h3 {[%emt 0:00:30]} Nh7 {[%emt 0:01:30]} 27. Be3 {[%emt 0:01:30]} Nf8 {[%emt 0:02:30]} 28. Nb3 {[%emt 0:00:30]} Ng6 {[%emt 0:03:30]} 29. Na5 {[%emt 0:02:30]} Rc8 {[%emt 0:00:30]} 30. Bd4 {[%emt 0:06:28]} Nf4 {[%emt 0:02:30]} 31. Rg1 {[%emt 0:01:36]} Nh5 {[%emt 0:00:30]} 32. Be3 {[%emt 0:01:52]} Qb5 {[%emt 0:01:30]} 33. Rge1 {[%emt 0:03:13]} Rc7 {[%emt 0:06:30]} 34. Ra1 {[%emt 0:01:33]} Qa4 {[%emt 0:00:30]} 35. Nb3 {[%emt 0:02:05]} Rc4 {[%emt 0:03:39]} 36. Na5 {[%emt 0:04:32]} Rc7 {[%emt 0:00:25]} 37. Rec1 {[%emt 0:00:30]} Kf8 {[%emt 0:05:47]} 38. Bh6+ {[%emt 0:02:33]} Ke8 {[%emt 0:00:01]} 39. Be3 {[%emt 0:00:02]} Qb5 {[%emt 0:00:30]} 40. Re1 {[%emt 0:00:30]} Qa4 {[%emt 0:00:30]} 41. Nb3 {[%emt 0:00:30]} Rc4 {[%emt 0:00:30]} 42. Na5 {[%emt 0:00:30]} Rc7 {[%emt 0:00:30]} 43. Rec1 {[%emt 0:00:30]} Kf8 {[%emt 0:00:30]} 44. Bh6+ {[%emt 0:00:30]} Ke8 {[%emt 0:00:30]} 45. Be3 {[%emt 0:00:00]} Kf8 {[%emt 0:00:44]} 46. Nb3 {[%emt 0:00:04]} Rc4 {[%emt 0:01:06]} 47. Nc5 {[%emt 0:00:30]} Ng3+ {[%emt 0:01:45]} 48. Kh2 {[%emt 0:00:15]} Qc6 {[%emt 0:00:15]} 49. Nd3 {[%emt 0:01:21]} Qc7 {[%emt 0:00:21]} 50. Bc5 {[%emt 0:01:06]} Bxc5 {[%emt 0:02:08]} 51. bxc5 {[%emt 0:00:02]} Kg7 {[%emt 0:02:12]} 52. Rab1 {[%emt 0:00:51]} Kh7 {[%emt 0:00:10]} 53. Rb4 {[%emt 0:00:45]} f6 {[%emt 0:01:02]} 54. Re1 {[%emt 0:00:54]} fxe5 {[%emt 0:00:09]} 55. Nxe5 {[%emt 0:00:08]} Rxb4 {[%emt 0:00:14]} 56. cxb4 {[%emt 0:00:10]} Qxe5 {[%emt 0:00:10]} 57. Rxe5 {[%emt 0:00:01]} Nf1+ {[%emt 0:00:31]} 58. Kg1 {[%emt 0:00:01]} Nxd2 {[%emt 0:00:00]} 59. Rxe6 {[%emt 0:00:00]} Nxf3+ {[%emt 0:00:00]} 60. Kf2 {[%emt 0:00:19]} Nd4 {[%emt 0:02:00]} 61. Rd6 {[%emt 0:00:31]} Nc6 {[%emt 0:00:32]} 62. Rxd5 {[%emt 0:00:07]} Nxb4 {[%emt 0:00:11]} 63. Rxf5 {[%emt 0:00:01]} Kg6 {[%emt 0:00:11]} 64. Rf3 {[%emt 0:00:03]} Rd8 0-1